fUST/lending_fUST_20250618
["ID","MTS","AMOUNT","RATE_DAILY","PERIOD"]
[366322090,1750186244977,-460.0,0.00022575,6]
[366322091,1750186244986,-433.3,0.00022575,6]
[366322092,1750186244996,-355.5,0.00022575,6]
[366322093,1750186245006,-590.42,0.00022575,6]
[366322094,1750186245017,-565.38,0.00022575,6]
[366322095,1750186245028,-460.0,0.00022575,6]
[366322096,1750186245038,-2587.69,0.00022575,6]
[366322097,1750186245048,-774.55,0.00022575,6]
[366322098,1750186245057,-469.15,0.00022575,6]
[366322099,1750186245067,-460.0,0.00022575,6]
[366322100,1750186245077,-460.0,0.00022575,6]
[366322101,1750186245086,-493.75,0.00022575,6]
[366322102,1750186245095,-1622.44,0.00022575,6]
[366322103,1750186245104,-460.0,0.00022575,6]
[366322104,1750186245113,-460.0,0.00022575,6]
[366322105,1750186245123,-464.65,0.00022575,6]
[366322106,1750186245132,-460.0,0.00022575,6]
[366322107,1750186245141,-460.0,0.00022575,6]
[366322108,1750186245151,-956.86,0.00022575,6]
[366322109,1750186245160,-734.2,0.00022575,6]
[366322110,1750186245169,-460.0,0.00022575,6]
[366322111,1750186245179,-511.83,0.00022575,6]
[366322112,1750186245192,-460.0,0.00022575,6]
[366322113,1750186245201,-460.0,0.00022575,6]
[366322114,1750186245211,-2454.95,0.00022575,6]
[366322115,1750186245221,-540.7071888,0.00022624,7]
[366322116,1750186245230,-845.62440851,0.00022635,2]
[366322117,1750186245240,-223.0315306,0.00022649,2]
[366322118,1750186245250,-229.94211981,0.00022649,2]
[366322119,1750186245259,-835.82910252,0.00022649,2]
[366322120,1750186245269,-160.0,0.00022649,2]
[366322121,1750186245278,-160.0,0.00022649,2]
[366322122,1750186245288,-213.39869953,0.00022649,2]
[366322123,1750186245297,-424.62582665,0.00022649,2]
[366322124,1750186245306,-636.96,0.00022684,6]
[366322125,1750186245316,-541.39,0.00022684,6]
[366322126,1750186245325,-460.0,0.00022684,6]
[366322127,1750186245334,-460.0,0.00022684,6]
[366322128,1750186245343,-173.6,0.00022684,6]
[366322129,1750186245353,-843.34,0.00022684,6]
[366322130,1750186245362,-1243.03,0.00022684,6]
[366322131,1750186245372,-326.36962437,0.00022684,6]
[366322132,1750186245382,-981.59,0.00022684,6]
[366322133,1750186245391,-460.0,0.00022684,6]
[366322134,1750186245401,-616.05,0.00022684,6]
[366322135,1750186245410,-491.51,0.00022684,6]
[366322136,1750186245419,-523.92,0.00022684,6]
[366322137,1750186245429,-460.0,0.00022684,6]
[366322138,1750186245439,-460.0,0.00022684,6]
[366322139,1750186245449,-1539.54,0.00022684,6]
[366322140,1750186245458,-460.0,0.00022684,6]
[366322141,1750186245468,-460.0,0.00022684,6]
[366322142,1750186245477,-460.0,0.00022684,6]
[366322143,1750186245487,-460.0,0.00022684,6]
[366322144,1750186245497,-374.57980581,0.00022684,6]
[366322145,1750186245507,-460.0,0.00022684,6]
[366322146,1750186245516,-460.0,0.00022684,6]
[366322147,1750186245526,-1087.94,0.00022684,6]
[366322148,1750186245535,-460.0,0.00022684,6]
[366322149,1750186245544,-460.0,0.00022684,6]
[366322150,1750186245554,-460.0,0.00022684,6]
[366322151,1750186245565,-680.52,0.00022684,6]
[366322152,1750186245575,-460.0,0.00022684,6]
[366322153,1750186245585,-460.0,0.00022684,6]
[366322154,1750186245593,-441.5,0.00022684,6]
[366322155,1750186245603,-460.0,0.00022684,6]
[366322156,1750186245613,-460.0,0.00022684,6]
[366322157,1750186245622,-590.42,0.00022684,6]
[366322158,1750186245632,-565.38,0.00022684,6]
[366322159,1750186245642,-460.0,0.00022684,6]
[366322160,1750186245651,-2587.69,0.00022684,6]
[366322161,1750186245661,-774.55,0.00022684,6]
[366322162,1750186245670,-469.15,0.00022684,6]
[366322163,1750186245679,-460.0,0.00022684,6]
[366322164,1750186245690,-460.0,0.00022684,6]
[366322165,1750186245700,-1622.44,0.00022684,6]
[366322166,1750186245709,-460.0,0.00022684,6]
[366322167,1750186245718,-251.28346308,0.00022684,6]
[366322168,1750186245728,-464.65,0.00022684,6]
[366322169,1750186245737,-460.0,0.00022684,6]
[366322170,1750186245746,-460.0,0.00022684,6]
[366322171,1750186245756,-956.86,0.00022684,6]
[366322172,1750186245765,-734.2,0.00022684,6]
[366322173,1750186245774,-386.08646977,0.00022684,6]
[366322174,1750186245783,-511.83,0.00022684,6]
[366322175,1750186245793,-460.0,0.00022684,6]
[366322176,1750186245804,-460.0,0.00022684,6]
[366322177,1750186245816,-2454.95,0.00022684,6]
[366322178,1750186245826,-158.9019424,0.00022712,2]
[366322179,1750186245835,-1156.9105454,0.00022712,2]
[366322180,1750186245845,-500.0,0.00022781,2]
[366322181,1750186245855,-636.96,0.00022794,6]
[366322182,1750186245864,-541.39,0.00022794,6]
[366322183,1750186245873,-179.36,0.00022794,6]
[366322184,1750186245883,-460.0,0.00022794,6]
[366322185,1750186245893,-843.34,0.00022794,6]
[366322186,1750186245902,-1243.03,0.00022794,6]
[366322187,1750186245911,-981.59,0.00022794,6]
[366322188,1750186245921,-460.0,0.00022794,6]
[366322189,1750186245931,-616.05,0.00022794,6]
[366322190,1750186245942,-491.51,0.00022794,6]
[366322191,1750186245952,-523.92,0.00022794,6]
[366322192,1750186245962,-460.0,0.00022794,6]
[366322193,1750186245971,-460.0,0.00022794,6]
[366322194,1750186245981,-1539.54,0.00022794,6]
[366322195,1750186245990,-460.0,0.00022794,6]
[366322196,1750186245999,-460.0,0.00022794,6]
[366322197,1750186246008,-499.9,0.00022794,6]
[366322198,1750186246019,-460.0,0.00022794,6]
[366322199,1750186246028,-220.72,0.00022794,6]
[366322200,1750186246037,-460.0,0.00022794,6]
[366322202,1750186246046,-1087.94,0.00022794,6]
[366322203,1750186246055,-446.35,0.00022794,6]
[366322204,1750186246065,-453.32,0.00022794,6]
[366322205,1750186246074,-460.0,0.00022794,6]
[366322207,1750186246083,-680.52,0.00022794,6]
[366322208,1750186246092,-460.0,0.00022794,6]
[366322210,1750186246102,-460.0,0.00022794,6]
[366322212,1750186246111,-460.0,0.00022794,6]
[366322213,1750186246120,-460.0,0.00022794,6]
[366322215,1750186246129,-590.42,0.00022794,6]
[366322216,1750186246139,-565.38,0.00022794,6]
[366322217,1750186246148,-460.0,0.00022794,6]
[366322219,1750186246157,-2587.69,0.00022794,6]
[366322220,1750186246167,-500.0,0.00022794,2]
[366322222,1750186246178,-774.55,0.00022794,6]
[366322223,1750186246188,-469.15,0.00022794,6]
[366322225,1750186246197,-520.95,0.00022794,6]
[366322226,1750186246206,-460.0,0.00022794,6]
[366322228,1750186246217,-1622.44,0.00022794,6]
[366322230,1750186246226,-460.0,0.00022794,6]
[366322231,1750186246235,-464.65,0.00022794,6]
[366322232,1750186246245,-460.0,0.00022794,6]
[366322233,1750186246254,-460.0,0.00022794,6]
[366322235,1750186246263,-956.86,0.00022794,6]
[366322237,1750186246272,-734.2,0.00022794,6]
[366322238,1750186246281,-511.83,0.00022794,6]
[366322239,1750186246291,-460.0,0.00022794,6]
[366322240,1750186246300,-460.0,0.00022794,6]
[366322242,1750186246310,-2454.95,0.00022794,6]
[366322244,1750186246319,-540.7071888,0.00022797,7]
[366322245,1750186246329,-500.0,0.00022809,2]
[366322247,1750186246339,-406.66146165,0.00022851,2]
[366322248,1750186246348,-211.7,0.00022879,6]
[366322249,1750186246358,-636.96,0.00022904,6]
[366322250,1750186246367,-541.39,0.00022904,6]
[366322251,1750186246377,-513.0,0.00022904,6]
[366322252,1750186246387,-252.30971692,0.00022904,6]
[366322253,1750186246480,-591.03028308,0.00022904,6]
[366322254,1750186246489,-1243.03,0.00022904,6]
[366322255,1750186246499,-981.59,0.00022904,6]
[366322256,1750186246507,-460.0,0.00022904,6]
[366322257,1750186246517,-616.05,0.00022904,6]
[366322258,1750186246526,-491.51,0.00022904,6]
[366322259,1750186246535,-523.92,0.00022904,6]
[366322260,1750186246545,-460.0,0.00022904,6]
[366322261,1750186246554,-460.0,0.00022904,6]
[366322262,1750186246563,-1539.54,0.00022904,6]
[366322263,1750186246573,-460.0,0.00022904,6]
[366322264,1750186246582,-460.0,0.00022904,6]
[366322265,1750186246591,-460.0,0.00022904,6]
[366322266,1750186246601,-460.0,0.00022904,6]
[366322267,1750186246611,-1087.94,0.00022904,6]
[366322268,1750186246621,-460.0,0.00022904,6]
[366322269,1750186246630,-680.52,0.00022904,6]
[366322270,1750186246639,-460.0,0.00022904,6]
[366322271,1750186246648,-460.0,0.00022904,6]
[366322272,1750186246657,-460.0,0.00022904,6]
[366322273,1750186246667,-460.0,0.00022904,6]
[366322274,1750186246676,-590.42,0.00022904,6]
[366322275,1750186246686,-565.38,0.00022904,6]
[366322276,1750186246696,-460.0,0.00022904,6]
[366322277,1750186246706,-2587.69,0.00022904,6]
[366322278,1750186246714,-774.55,0.00022904,6]
[366322279,1750186246724,-469.15,0.00022904,6]
[366322280,1750186246733,-460.0,0.00022904,6]
[366322281,1750186246743,-1622.44,0.00022904,6]
[366322282,1750186246753,-460.0,0.00022904,6]
[366322283,1750186246763,-464.65,0.00022904,6]
[366322284,1750186246772,-460.0,0.00022904,6]
[366322285,1750186246782,-460.0,0.00022904,6]
[366322286,1750186246791,-956.86,0.00022904,6]
[366322287,1750186246800,-734.2,0.00022904,6]
[366322288,1750186246814,-511.83,0.00022904,6]
[366322289,1750186246824,-460.0,0.00022904,6]
[366322290,1750186246833,-460.0,0.00022904,6]
[366322291,1750186246843,-2454.95,0.00022904,6]
[366322292,1750186246852,-540.7071888,0.00022969,8]
[366322293,1750186246862,-500.0,0.00022973,2]
[366322294,1750186246872,-81843.74115584,0.00023,2]
[366322295,1750186246882,-248.90381807,0.00023,2]
[366322296,1750186246891,-16264.44535133,0.00023,20]
[366322297,1750186246899,-1955.31773304,0.00023,2]
[366322298,1750186246907,-10043.38789823,0.00023,2]
[366322299,1750186246918,-95627.09,0.00023,2]
[366322300,1750186246926,-1200.93,0.00023,7]
[366322301,1750186246935,-4039.88,0.00023,7]
[366322302,1750186246948,-160.0,0.00023,7]
[366322303,1750186246957,-371.0,0.00023008,2]
[366322304,1750186246967,-636.96,0.00023013,6]
[366322305,1750186246977,-541.39,0.00023013,6]
[366322306,1750186246987,-843.34,0.00023013,6]
[366322307,1750186246997,-1243.03,0.00023013,6]
[366322308,1750186247006,-981.59,0.00023013,6]
[366322309,1750186247016,-460.0,0.00023013,6]
[366322310,1750186247025,-616.05,0.00023013,6]
[366322311,1750186247035,-491.51,0.00023013,6]
[366322312,1750186247044,-523.92,0.00023013,6]
[366322313,1750186247054,-460.0,0.00023013,6]
[366322314,1750186247063,-460.0,0.00023013,6]
[366322315,1750186247073,-1539.54,0.00023013,6]
[366322316,1750186247082,-460.0,0.00023013,6]
[366322317,1750186247092,-460.0,0.00023013,6]
[366322318,1750186247101,-460.0,0.00023013,6]
[366322319,1750186247110,-460.0,0.00023013,6]
[366322320,1750186247120,-1087.94,0.00023013,6]
[366322321,1750186247130,-460.0,0.00023013,6]
[366322322,1750186247139,-680.52,0.00023013,6]
[366322323,1750186247149,-460.0,0.00023013,6]
[366322324,1750186247158,-460.0,0.00023013,6]
[366322325,1750186247168,-460.0,0.00023013,6]
[366322326,1750186247177,-460.0,0.00023013,6]
[366322327,1750186247189,-590.42,0.00023013,6]
[366322328,1750186247199,-565.38,0.00023013,6]
[366322329,1750186247208,-460.0,0.00023013,6]
[366322330,1750186247218,-2587.69,0.00023013,6]
[366322331,1750186247228,-774.55,0.00023013,6]
[366322332,1750186247237,-469.15,0.00023013,6]
[366322333,1750186247247,-352.82,0.00023013,6]
[366322334,1750186247256,-1622.44,0.00023013,6]
[366322335,1750186247266,-460.0,0.00023013,6]
[366322336,1750186247276,-464.65,0.00023013,6]
[366322337,1750186247286,-460.0,0.00023013,6]
[366322338,1750186247295,-460.0,0.00023013,6]
[366322339,1750186247305,-956.86,0.00023013,6]
[366322340,1750186247314,-734.2,0.00023013,6]
[366322341,1750186247324,-511.83,0.00023013,6]
[366322342,1750186247335,-460.0,0.00023013,6]
[366322343,1750186247345,-211.7,0.0002304,6]
[366322344,1750186247355,-500.0,0.00023067,2]
[366322345,1750186247364,-1500.0,0.00023068,2]
[366322346,1750186247374,-500.0,0.00023071,2]
[366322347,1750186247384,-500.0,0.00023071,2]
[366322348,1750186247393,-500.0,0.00023071,2]
[366322349,1750186247403,-500.0,0.00023071,2]
[366322350,1750186247413,-500.0,0.00023071,2]
[366322351,1750186247422,-500.0,0.00023071,2]
[366322352,1750186247432,-501.68811855,0.00023071,2]
[366322353,1750186247444,-600.0,0.00023071,2]
[366322354,1750186247453,-500.0,0.00023071,2]
[366322355,1750186247463,-507.99073814,0.00023071,2]
[366322356,1750186247472,-431.51684275,0.00023098,2]
[366322357,1750186247482,-500.0,0.00023106,2]
[366322358,1750186247492,-500.0,0.00023122,2]
[366322359,1750186247502,-636.96,0.00023123,6]
[366322360,1750186247512,-541.39,0.00023123,6]
[366322361,1750186247522,-843.34,0.00023123,6]
[366322362,1750186247533,-1243.03,0.00023123,6]
[366322363,1750186247543,-981.59,0.00023123,6]
[366322364,1750186247676,-460.0,0.00023123,6]
[366322365,1750186247688,-616.05,0.00023123,6]
[366322366,1750186247698,-491.51,0.00023123,6]
[366322367,1750186247709,-523.92,0.00023123,6]
[366322368,1750186247720,-460.0,0.00023123,6]
[366322369,1750186247730,-460.0,0.00023123,6]
[366322370,1750186247740,-1539.54,0.00023123,6]
[366322371,1750186247750,-592.69758141,0.00023123,6]
[366322372,1750186247760,-460.0,0.00023123,6]
[366322373,1750186247770,-460.0,0.00023123,6]
[366322374,1750186247781,-335.6,0.00023123,6]
[366322375,1750186247791,-1087.94,0.00023123,6]
[366322376,1750186247800,-460.0,0.00023123,6]
[366322377,1750186247813,-680.52,0.00023123,6]
[366322378,1750186247822,-460.0,0.00023123,6]
[366322379,1750186247832,-460.0,0.00023123,6]
[366322380,1750186247842,-460.0,0.00023123,6]
[366322381,1750186247852,-460.0,0.00023123,6]
[366322382,1750186247861,-590.42,0.00023123,6]
[366322383,1750186247871,-565.38,0.00023123,6]
[366322384,1750186247881,-460.0,0.00023123,6]
[366322385,1750186247893,-2587.69,0.00023123,6]
[366322386,1750186247903,-774.55,0.00023123,6]
[366322387,1750186247912,-469.15,0.00023123,6]
[366322388,1750186247922,-1622.44,0.00023123,6]
[366322389,1750186247932,-460.0,0.00023123,6]
[366322390,1750186247944,-464.65,0.00023123,6]
[366322391,1750186247953,-534.27,0.00023123,6]
[366322392,1750186247965,-460.0,0.00023123,6]
[366322393,1750186247975,-956.86,0.00023123,6]
[366322394,1750186247986,-734.2,0.00023123,6]
[366322395,1750186247996,-511.83,0.00023123,6]
[366322396,1750186248006,-460.0,0.00023123,6]
[366322397,1750186248017,-540.7071888,0.00023141,8]
[366322398,1750186248027,-44445.71,0.000232,7]
[366322399,1750186248036,-151.0,0.000232,10]
[366322400,1750186248046,-211.7,0.00023202,6]
[366322401,1750186248057,-636.96,0.00023232,6]
[366322402,1750186248067,-541.39,0.00023232,6]
[366322403,1750186248078,-843.34,0.00023232,6]
[366322404,1750186248089,-1243.03,0.00023232,6]
[366322405,1750186248099,-534.15842196,0.00023232,6]
[366322406,1750186248117,-463.65,0.00023013,6]
[366322407,1750186248127,-447.43157804,0.00023232,6]
[366322408,1750186248137,-460.0,0.00023232,6]
[366322409,1750186248147,-616.05,0.00023232,6]
[366322410,1750186248158,-491.51,0.00023232,6]
[366322411,1750186248168,-523.92,0.00023232,6]
[366322412,1750186248178,-460.0,0.00023232,6]
[366322413,1750186248189,-460.0,0.00023232,6]
[366322414,1750186248198,-1539.54,0.00023232,6]
[366322415,1750186248208,-462.41188986,0.00023232,6]
[366322416,1750186248218,-364.3991475,0.00023232,6]
[366322417,1750186248228,-1087.94,0.00023232,6]
[366322418,1750186248238,-460.0,0.00023232,6]
[366322419,1750186248247,-680.52,0.00023232,6]
[366322420,1750186248257,-460.0,0.00023232,6]
[366322421,1750186248267,-460.0,0.00023232,6]
[366322422,1750186248277,-460.0,0.00023232,6]
[366322423,1750186248287,-460.0,0.00023232,6]
[366322424,1750186248298,-590.42,0.00023232,6]
[366322425,1750186248308,-565.38,0.00023232,6]
[366322426,1750186248318,-460.0,0.00023232,6]
[366322427,1750186248328,-2587.69,0.00023232,6]
[366322428,1750186248338,-774.55,0.00023232,6]
[366322429,1750186248348,-469.15,0.00023232,6]
[366322430,1750186248358,-1622.44,0.00023232,6]
[366322431,1750186248369,-460.0,0.00023232,6]
[366322432,1750186248379,-464.65,0.00023232,6]
[366322433,1750186248391,-460.0,0.00023232,6]
[366322434,1750186248401,-956.86,0.00023232,6]
[366322435,1750186248411,-734.2,0.00023232,6]
[366322436,1750186248423,-511.83,0.00023232,6]
[366322437,1750186248433,-460.0,0.00023232,6]
[366322438,1750186248445,-1000.81103363,0.000233,15]
[366322439,1750186248455,-360.0,0.0002331,2]
[366322440,1750186248465,-194.13668949,0.00023311,2]
[366322441,1750186248475,-540.7071888,0.00023314,9]
[366322442,1750186248485,-160.0,0.00023328,4]
[366322443,1750186248495,-636.96,0.00023342,6]
[366322444,1750186248505,-541.39,0.00023342,6]
[366322445,1750186248515,-843.34,0.00023342,6]
[366322446,1750186248525,-1243.03,0.00023342,6]
[366322447,1750186248535,-981.59,0.00023342,6]
[366322448,1750186248545,-500.0,0.00023342,2]
[366322449,1750186248555,-460.0,0.00023342,6]
[366322450,1750186248565,-616.05,0.00023342,6]
[366322451,1750186248575,-491.51,0.00023342,6]
[366322452,1750186248586,-523.92,0.00023342,6]
[366322453,1750186248596,-460.0,0.00023342,6]
[366322454,1750186248605,-460.0,0.00023342,6]
[366322455,1750186248614,-1539.54,0.00023342,6]
[366322456,1750186248624,-1087.94,0.00023342,6]
[366322457,1750186248634,-460.0,0.00023342,6]
[366322458,1750186248644,-680.52,0.00023342,6]
[366322459,1750186248653,-460.0,0.00023342,6]
[366322460,1750186248663,-460.0,0.00023342,6]
[366322461,1750186248672,-460.0,0.00023342,6]
[366322462,1750186248682,-460.0,0.00023342,6]
[366322463,1750186248692,-590.42,0.00023342,6]
[366322464,1750186248702,-565.38,0.00023342,6]
[366322465,1750186248712,-460.0,0.00023342,6]
[366322466,1750186248722,-2587.69,0.00023342,6]
[366322467,1750186248731,-774.55,0.00023342,6]
[366322468,1750186248741,-469.15,0.00023342,6]
[366322469,1750186248751,-1622.44,0.00023342,6]
[366322470,1750186248761,-460.0,0.00023342,6]
[366322471,1750186248771,-464.65,0.00023342,6]
[366322472,1750186248781,-460.0,0.00023342,6]
[366322473,1750186248791,-956.86,0.00023342,6]
[366322474,1750186248801,-734.2,0.00023342,6]
[366322475,1750186248812,-511.83,0.00023342,6]
[366322476,1750186248822,-460.0,0.00023342,6]
[366322477,1750186248832,-141838.56967316,0.0002335,2]
[366322478,1750186248843,-151.0,0.0002335,7]
[366322479,1750186248853,-152.492134,0.0002335,7]
[366322480,1750186248863,-211.7,0.00023364,6]
[366322481,1750186248874,-160.0,0.00023369,2]
[366322482,1750186248886,-500.0,0.00023373,2]
[366322483,1750186248898,-500.0,0.00023373,2]
[366322484,1750186248907,-591.1869642,0.00023373,2]
[366322485,1750186248917,-500.0,0.00023373,2]
[366322486,1750186248927,-500.0,0.00023373,2]
[366322487,1750186248936,-500.0,0.00023392,2]
[366322488,1750186248947,-500.0,0.00023425,2]
[366322489,1750186248958,-636.96,0.00023452,6]
[366322490,1750186248969,-541.39,0.00023452,6]
[366322491,1750186248979,-843.34,0.00023452,6]
[366322492,1750186248990,-1243.03,0.00023452,6]
[366322493,1750186249002,-981.59,0.00023452,6]
[366322494,1750186249013,-460.0,0.00023452,6]
[366322495,1750186249023,-616.05,0.00023452,6]
[366322496,1750186249033,-491.51,0.00023452,6]
[366322497,1750186249043,-523.92,0.00023452,6]
[366322498,1750186249054,-460.0,0.00023452,6]
[366322499,1750186249066,-460.0,0.00023452,6]
[366322500,1750186249076,-1539.54,0.00023452,6]
[366322501,1750186249086,-1087.94,0.00023452,6]
[366322502,1750186249096,-460.0,0.00023452,6]
[366322503,1750186249106,-680.52,0.00023452,6]
[366322504,1750186249117,-171.28986018,0.00023452,6]
[366322505,1750186249127,-460.0,0.00023452,6]
[366322506,1750186249137,-460.0,0.00023452,6]
[366322507,1750186249147,-460.0,0.00023452,6]
[366322508,1750186249158,-590.42,0.00023452,6]
[366322509,1750186249168,-565.38,0.00023452,6]
[366322510,1750186249179,-608.48,0.00023452,6]
[366322511,1750186249190,-2587.69,0.00023452,6]
[366322512,1750186249200,-774.55,0.00023452,6]
[366322513,1750186249210,-469.15,0.00023452,6]
[366322514,1750186249220,-1622.44,0.00023452,6]
[366322515,1750186249230,-460.0,0.00023452,6]
[366322516,1750186249241,-464.65,0.00023452,6]
[366322517,1750186249251,-460.0,0.00023452,6]
[366322518,1750186249261,-956.86,0.00023452,6]
[366322519,1750186249270,-734.2,0.00023452,6]
[366322520,1750186249290,-511.83,0.00023452,6]
[366322521,1750186249301,-460.0,0.00023452,6]
[366322522,1750186249311,-540.7071888,0.00023486,9]
[366322523,1750186249321,-166.96849292,0.00023487,2]
[366322524,1750186249331,-19095.66007,0.00023499,2]
[366322525,1750186249341,-29387.19787004,0.000235,7]
[366322526,1750186249351,-160.0,0.000235,7]
[366322527,1750186249361,-1000.0,0.00023521,2]
[366322528,1750186249370,-211.7,0.00023525,6]
[366322529,1750186249380,-636.96,0.00023561,6]
[366322530,1750186249390,-541.39,0.00023561,6]
[366322531,1750186249401,-843.34,0.00023561,6]
[366322532,1750186249411,-1243.03,0.00023561,6]
[366322533,1750186249421,-981.59,0.00023561,6]
[366322534,1750186249431,-460.0,0.00023561,6]
[366322535,1750186249441,-616.05,0.00023561,6]
[366322536,1750186249451,-491.51,0.00023561,6]
[366322537,1750186249461,-523.92,0.00023561,6]
[366322538,1750186249471,-460.0,0.00023561,6]
[366322539,1750186249481,-460.0,0.00023561,6]
[366322540,1750186249491,-1539.54,0.00023561,6]
[366322541,1750186249501,-1087.94,0.00023561,6]
[366322542,1750186249511,-460.0,0.00023561,6]
[366322543,1750186249522,-680.52,0.00023561,6]
[366322544,1750186249532,-460.0,0.00023561,6]
[366322545,1750186249543,-460.0,0.00023561,6]
[366322546,1750186249553,-460.0,0.00023561,6]
[366322547,1750186249563,-590.42,0.00023561,6]
[366322548,1750186249574,-565.38,0.00023561,6]
[366322549,1750186249584,-2587.69,0.00023561,6]
[366322550,1750186249594,-774.55,0.00023561,6]
[366322551,1750186249604,-469.15,0.00023561,6]
[366322552,1750186249614,-1622.44,0.00023561,6]
[366322553,1750186249624,-460.0,0.00023561,6]
[366322554,1750186249634,-464.65,0.00023561,6]
[366322555,1750186249644,-460.0,0.00023561,6]
[366322556,1750186249653,-956.86,0.00023561,6]
[366322557,1750186249666,-734.2,0.00023561,6]
[366322558,1750186249676,-511.83,0.00023561,6]
[366322559,1750186249686,-236.38993109,0.00023561,6]
[366322560,1750186249697,-37779.06720771,0.00023597,2]
[366322561,1750186249707,-151.0,0.00023597,7]
[366322562,1750186249717,-162.246387,0.00023597,7]
[366322563,1750186249727,-162.246387,0.00023597,7]
[366322564,1750186249737,-151.0,0.00023597,7]
[366322565,1750186249747,-151.0,0.00023597,7]
[366322566,1750186249757,-206.0,0.000236,2]
[366322567,1750186249768,-47499.35866855,0.000236,2]
[366322568,1750186249778,-2000.0,0.00023616,2]
[366322569,1750186249788,-491.86024123,0.00023619,2]
[366322570,1750186249798,-1000.0,0.00023619,2]
[366322571,1750186249812,-380.9116038,0.00023619,2]
[366322572,1750186249822,-1000.0,0.00023619,2]
[366322573,1750186249832,-1000.0,0.00023619,2]
[366322574,1750186249842,-1000.0,0.00023619,2]
[366322575,1750186249853,-1200.0,0.00023619,2]
[366322576,1750186249863,-1000.0,0.00023619,2]
[366322577,1750186249873,-500.0,0.00023651,2]
[366322578,1750186249883,-540.7071888,0.00023659,9]
[366322579,1750186249894,-500.0,0.00023661,2]
[366322580,1750186249907,-636.96,0.00023671,6]
[366322581,1750186249917,-541.39,0.00023671,6]
[366322582,1750186249926,-843.34,0.00023671,6]
[366322583,1750186249936,-1243.03,0.00023671,6]
[366322584,1750186249946,-981.59,0.00023671,6]
[366322585,1750186249956,-460.0,0.00023671,6]
[366322586,1750186249966,-616.05,0.00023671,6]
[366322587,1750186249976,-491.51,0.00023671,6]
[366322588,1750186249985,-523.92,0.00023671,6]
[366322589,1750186249995,-460.0,0.00023671,6]
[366322590,1750186250005,-460.0,0.00023671,6]
[366322591,1750186250014,-1539.54,0.00023671,6]
[366322592,1750186250024,-1087.94,0.00023671,6]
[366322593,1750186250034,-460.0,0.00023671,6]
[366322594,1750186250043,-680.52,0.00023671,6]
[366322595,1750186250054,-460.0,0.00023671,6]
[366322596,1750186250064,-460.0,0.00023671,6]
[366322597,1750186250073,-460.0,0.00023671,6]
[366322598,1750186250083,-590.42,0.00023671,6]
[366322599,1750186250093,-565.38,0.00023671,6]
[366322600,1750186250103,-2587.69,0.00023671,6]
[366322601,1750186250114,-774.55,0.00023671,6]
[366322602,1750186250124,-469.15,0.00023671,6]
[366322603,1750186250135,-1622.44,0.00023671,6]
[366322604,1750186250145,-460.0,0.00023671,6]